bitfinex-derivatives/quotes_SOLF0:USTF0_20250310
["timestamp","ask_amount","ask_price","bid_price","bid_amount"]
[1741575699696,0.05013097,127.54,127.53,7.8419]
[1741575700695,2.3991,127.6,127.56,7.8396]
[1741575701388,10.2367,127.6,127.52,35.4918]
[1741575701593,2.3991,127.6,127.52,35.4918]
[1741575701800,0.05926289,127.57,127.55,0.05717521]
[1741575702095,0.05926289,127.57,127.55,7.89727521]
[1741575702294,0.05926289,127.57,127.55,0.05717521]
[1741575702696,7.84,127.56,127.55,0.05717521]
[1741575703094,7.89896289,127.57,127.55,0.05717521]
[1741575703398,0.05926289,127.57,127.55,0.05717521]
[1741575703805,7.89866289,127.57,127.55,0.05717521]
[1741575704499,0.05926289,127.57,127.56,7.84]
[1741575705398,0.05926289,127.57,127.55,30.87717521]
[1741575707102,0.05926289,127.57,127.55,38.71747521]
[1741575707400,0.05926289,127.57,127.55,30.87717521]
[1741575708294,0.05926289,127.57,127.56,7.84]
[1741575713011,0.05926289,127.57,127.55,38.71757521]
[1741575713205,0.05926289,127.57,127.55,0.05717521]
[1741575714303,7.84,127.56,127.55,0.05717521]
[1741575720509,0.05926289,127.57,127.55,0.05717521]
[1741575722810,7.84,127.56,127.55,0.05717521]
[1741575724618,7.89896289,127.57,127.55,0.05717521]
[1741575724807,0.05926289,127.57,127.55,0.05717521]
[1741575725713,0.05926289,127.57,127.56,7.84]
[1741575726517,0.05926289,127.57,127.55,7.89757521]
[1741575726710,0.05926289,127.57,127.55,0.05717521]
[1741575727413,19.91808014,127.56,127.49,7.8441]
[1741575727721,4.6171,127.55,127.49,7.8441]
[1741575728017,4.6171,127.55,127.47,55.35988014]
[1741575728221,7.8415,127.54,127.5,7.8432]
[1741575728416,0.0495459,127.52,127.5,7.89914705]
[1741575728615,0.0495459,127.52,127.5,0.05594705]
[1741575729620,7.8431,127.51,127.5,0.05594705]
[1741575730619,7.8447,127.49,127.45,93.37865932]
[1741575730815,30.8,127.51,127.45,85.53215932]
[1741575731126,50.71808014,127.54,127.46,19.91808014]
[1741575731324,7.8435,127.51,127.46,27.76398014]
[1741575731519,50.71808014,127.54,127.46,27.76398014]
[1741575731726,0.0527275,127.5,127.47,0.05815495]
[1741575731925,0.0527275,127.5,127.48,50.71808014]
[1741575732434,0.0527275,127.5,127.47,0.05815495]
[1741575733025,7.8965275,127.5,127.47,0.05815495]
[1741575733219,0.0527275,127.5,127.47,0.05815495]
[1741575734426,0.0527275,127.5,127.48,50.71808014]
[1741575734626,0.0527275,127.5,127.48,30.8]
[1741575735527,0.0527275,127.5,127.47,0.05815495]
[1741575736023,7.8967275,127.5,127.47,0.05815495]
[1741575736229,0.0527275,127.5,127.47,0.05815495]
[1741575736624,7.8443,127.49,127.47,0.05815495]
[1741575737419,0.0527275,127.5,127.47,0.05815495]
[1741575737819,0.0527275,127.5,127.47,30.85815495]
[1741575738430,7.8968275,127.5,127.47,30.85815495]
[1741575738626,0.0527275,127.5,127.47,0.05815495]
[1741575738934,7.8449,127.48,127.47,0.05815495]
[1741575739827,7.846,127.47,127.42,50.71808014]
[1741575740228,7.846,127.47,127.43,7.8477]
[1741575740935,38.0394,127.49,127.44,0.0561638]
[1741575740936,0.04978114,127.46,127.44,0.0561638]
[1741575744023,7.89628114,127.46,127.44,0.0561638]
[1741575744227,0.04978114,127.46,127.44,0.0561638]
[1741575745130,7.8468,127.45,127.44,0.0561638]
[1741575745531,0.04978114,127.46,127.44,0.0561638]
[1741575746539,7.8468,127.45,127.44,0.0561638]
[1741575747140,7.89628114,127.46,127.44,0.0561638]
[1741575748335,0.04978114,127.46,127.44,0.0561638]
[1741575748536,0.04978114,127.46,127.44,19.97424394]
[1741575748737,0.04978114,127.46,127.45,7.8468]
[1741575748940,38.05482182,127.48,127.45,30.8]
[1741575749240,38.05482182,127.48,127.47,7.8456]
[1741575749635,38.05482182,127.48,127.46,19.91808014]
[1741575749835,38.05482182,127.48,127.44,19.97424394]
[1741575750037,38.11057374,127.48,127.44,0.0561638]
[1741575751544,42.81027374,127.48,127.44,0.0561638]
[1741575751938,7.8466,127.46,127.44,0.0561638]
[1741575753146,7.8458,127.47,127.44,0.0561638]
[1741575754948,7.8458,127.47,127.44,7.9032638]
[1741575755150,7.8465,127.46,127.44,0.0561638]
[1741575755448,42.81027374,127.48,127.44,0.0561638]
[1741575755643,7.8466,127.46,127.44,0.0561638]
[1741575756144,42.81027374,127.48,127.44,0.0561638]
[1741575756348,7.8468,127.45,127.44,0.0561638]
[1741575757644,7.8464,127.46,127.44,0.0561638]
[1741575757850,42.81027374,127.48,127.44,0.0561638]
[1741575758346,7.8459,127.47,127.44,0.0561638]
[1741575759448,50.65557374,127.48,127.44,0.0561638]
[1741575759752,42.81027374,127.48,127.44,0.0561638]
[1741575760252,7.8463,127.46,127.44,0.0561638]
[1741575760750,42.81027374,127.48,127.44,0.0561638]
[1741575760751,7.8468,127.45,127.44,0.0561638]
[1741575762133,62.72835388,127.48,127.4,27.76748014]
[1741575762134,7.8481,127.43,127.4,27.76748014]
[1741575762342,7.8481,127.43,127.39,35.4836]
[1741575762541,50.69808014,127.46,127.38,19.91808014]
[1741575762734,30.78,127.46,127.41,7.8492]
[1741575762935,30.78,127.46,127.4,19.91808014]
[1741575763138,30.78,127.46,127.42,0.05251556]
[1741575763139,0.05957777,127.44,127.42,0.05251556]
[1741575764454,7.848,127.43,127.42,0.05251556]
[1741575765347,0.05957777,127.44,127.38,19.91808014]
[1741575765551,7.8496,127.41,127.36,50.69808014]
[1741575765853,7.8496,127.41,127.38,7.8508]
[1741575766154,7.8489,127.42,127.38,7.8508]
[1741575766345,30.78,127.43,127.38,7.8508]
[1741575766545,0.0499907,127.42,127.39,0.05273337]
[1741575766845,7.8989907,127.42,127.39,0.05273337]
[1741575767047,7.8989907,127.42,127.39,7.90323337]
[1741575768153,7.8989907,127.42,127.39,0.05273337]
[1741575769047,0.0499907,127.42,127.39,0.05273337]
[1741575769247,7.8494,127.41,127.39,0.05273337]
[1741575769955,7.8988907,127.42,127.39,7.90313337]
[1741575770656,0.0499907,127.42,127.4,7.8498]
[1741575770843,0.0499907,127.42,127.39,0.05273337]
[1741575771353,7.8988907,127.42,127.39,7.90293337]
[1741575771654,0.0499907,127.42,127.39,0.05273337]
[1741575772447,7.8493,127.41,127.39,0.05273337]
[1741575772647,0.0499907,127.42,127.39,0.05273337]
[1741575773154,7.8989907,127.42,127.39,0.05273337]
[1741575773857,7.8497,127.41,127.39,0.05273337]
[1741575774758,7.8987907,127.42,127.39,7.90313337]
[1741575776050,7.8987907,127.42,127.39,0.05273337]
[1741575776260,12.78266649,127.4,127.34,12.78266649]
[1741575776454,12.78266649,127.38,127.34,12.78266649]
[1741575776655,12.78266649,127.38,127.32,12.78266649]
[1741575776855,12.78266649,127.38,127.3,85.53215932]
[1741575777053,12.78266649,127.38,127.32,12.78266649]
[1741575777259,12.78266649,127.36,127.32,12.78266649]
[1741575777465,12.83845786,127.36,127.34,0.04968482]
[1741575778354,0.05579137,127.36,127.34,0.04968482]
[1741575779559,0.05579137,127.36,127.34,7.90308482]
[1741575779963,0.05579137,127.36,127.35,7.853]
[1741575780169,0.05579137,127.36,127.34,0.04968482]
[1741575780466,0.05579137,127.36,127.34,20.02937488]
[1741575780770,0.05579137,127.36,127.35,7.853]
[1741575782160,0.05579137,127.36,127.34,0.04968482]
[1741575784260,0.05579137,127.36,127.35,7.853]
[1741575784667,0.05579137,127.36,127.34,0.04968482]
[1741575785471,0.05579137,127.36,127.34,7.90298482]
[1741575785968,0.05579137,127.36,127.35,7.853]
[1741575787666,4.7913,127.41,127.38,7.8506]
[1741575788679,0.0496947,127.41,127.38,0.05209598]
[1741575790769,0.0496947,127.41,127.38,7.90289598]
[1741575790971,0.0496947,127.41,127.38,0.05209598]
[1741575792676,0.0496947,127.41,127.4,7.8499]
[1741575793268,0.0496947,127.41,127.39,7.8503]
[1741575795867,0.0496947,127.41,127.4,7.8499]
[1741575796076,0.0496947,127.41,127.38,30.83209598]
[1741575796282,0.0496947,127.41,127.38,0.05209598]
[1741575796978,7.8505,127.39,127.38,0.05209598]
[1741575798681,7.8502,127.4,127.38,0.05209598]
[1741575799079,0.0496947,127.41,127.38,0.05209598]
[1741575800581,0.0496947,127.41,127.38,50.79178604]
[1741575802079,0.0496947,127.41,127.4,19.97969006]
[1741575802274,4.6481,127.47,127.4,19.97969006]
[1741575802474,12.4941,127.47,127.43,7.8477]
[1741575803578,0.05383186,127.46,127.44,0.05071992]
[1741575803784,7.8468,127.45,127.44,0.05071992]
[1741575804382,7.90043186,127.46,127.44,0.05071992]
[1741575804583,0.05383186,127.46,127.44,0.05071992]
[1741575805386,7.8468,127.45,127.44,0.05071992]
[1741575806480,30.81383186,127.46,127.38,19.97969006]
[1741575806683,7.8489,127.42,127.38,50.73969006]
[1741575806980,30.76,127.43,127.36,30.76]
[1741575807181,7.8505,127.39,127.36,30.76]
[1741575807387,7.8505,127.39,127.35,7.8527]
[1741575807884,0.05116936,127.38,127.36,0.05656039]
[1741575809285,7.90266936,127.38,127.36,0.05656039]
[1741575809689,0.05116936,127.38,127.36,0.05656039]
[1741575811888,0.05116936,127.38,127.37,7.8517]
[1741575812281,7.90236936,127.38,127.36,30.79656039]
[1741575812486,0.05116936,127.38,127.36,30.79656039]
[1741575813186,0.05116936,127.38,127.36,50.77625045]
[1741575813386,7.8493,127.41,127.38,7.8509]
[1741575813591,7.8493,127.41,127.36,50.71969006]
[1741575813789,19.97969006,127.43,127.36,30.74]
[1741575813989,7.8511,127.39,127.36,30.74]
[1741575814195,2.2761,127.42,127.36,30.74]
[1741575814394,0.05336713,127.4,127.38,0.05280346]
[1741575814782,0.05336713,127.4,127.39,7.8504]
[1741575815494,0.05336713,127.4,127.38,7.90370346]
[1741575815994,0.05336713,127.4,127.38,0.05280346]
[1741575816701,0.05336713,127.4,127.39,7.8505]
[1741575817297,10.2234,127.44,127.38,20.03249352]
[1741575817499,2.3758,127.44,127.38,0.05280346]
[1741575818100,7.8482,127.43,127.39,7.8501]
[1741575818295,7.8482,127.43,127.38,0.05280346]
[1741575818495,0.05485513,127.42,127.38,0.05280346]
[1741575818792,7.90355513,127.42,127.38,0.05280346]
[1741575819197,0.05485513,127.42,127.39,7.85]
[1741575820004,0.05485513,127.42,127.38,7.90370346]
[1741575820303,7.85,127.4,127.38,0.05280346]
[1741575820899,30.79485513,127.42,127.38,0.05280346]
[1741575821295,0.05485513,127.42,127.38,0.05280346]
[1741575821494,0.05485513,127.42,127.4,7.8495]
[1741575822600,0.05485513,127.42,127.41,7.8493]
[1741575829612,40.47432182,127.48,127.41,34.64]
[1741575829818,40.47432182,127.48,127.44,19.97969006]
[1741575830005,40.47432182,127.48,127.44,50.69969006]
[1741575830210,38.05482182,127.48,127.47,7.8456]
[1741575830710,38.05482182,127.48,127.46,7.90003368]
[1741575831109,38.05482182,127.48,127.46,0.05413368]
[1741575831313,45.90022182,127.48,127.46,0.05413368]
[1741575831509,38.05482182,127.48,127.46,0.05413368]
[1741575833809,45.90022182,127.48,127.46,0.05413368]
[1741575834918,38.05482182,127.48,127.46,7.90023368]
[1741575835416,38.05482182,127.48,127.46,0.05413368]
[1741575835719,38.05482182,127.48,127.47,7.8456]
[1741575839022,38.05482182,127.48,127.46,20.03382374]
[1741575839221,38.05482182,127.48,127.46,0.05413368]
[1741575839614,7.8456,127.47,127.46,0.05413368]
[1741575842619,42.81752182,127.48,127.41,30.7]
[1741575843525,42.81752182,127.48,127.43,7.8477]
[1741575844025,7.8462,127.46,127.44,0.06023813]
[1741575844618,0.04971435,127.47,127.44,0.06023813]
[1741575844827,7.8468,127.45,127.44,0.06023813]
[1741575845024,50.72940441,127.47,127.38,278.87969006]
[1741575845221,2.2693,127.46,127.39,30.7]
[1741575845721,2.2693,127.46,127.38,19.97969006]
[1741575845926,19.97969006,127.45,127.36,214.26049006]
[1741575846123,7.8497,127.41,127.39,0.05780938]
[1741575846921,0.05410238,127.42,127.39,0.05780938]
[1741575847119,7.8499,127.4,127.39,0.05780938]
[1741575847829,7.8513,127.38,127.36,10.82]
[1741575848123,50.67969006,127.41,127.36,10.82]
[1741575848316,7.8517,127.37,127.36,7.1391]
[1741575848517,30.7,127.38,127.3,105.51184938]
[1741575848820,30.7,127.38,127.33,0.05272126]
[1741575849025,0.05668798,127.35,127.33,0.05272126]
[1741575849725,30.75668798,127.35,127.28,27.83679006]
[1741575850123,7.854,127.34,127.28,7.8571]
[1741575850427,50.67969006,127.35,127.28,7.8571]
[1741575850824,50.67969006,127.35,127.3,0.05292949]
[1741575851028,0.05819933,127.33,127.3,0.05292949]
[1741575853522,7.91239933,127.33,127.3,0.05292949]
[1741575855540,50.69969006,127.32,127.23,22.40129006]
[1741575855829,19.97969006,127.3,127.22,30.72]
[1741575856131,30.72,127.29,127.22,30.72]
[1741575856633,0.0503109,127.27,127.24,0.05751369]
[1741575858029,7.9084109,127.27,127.24,0.05751369]
[1741575858230,0.0503109,127.27,127.24,0.05751369]
[1741575858738,30.72,127.26,127.24,0.05751369]
[1741575859532,30.72,127.26,127.19,27.84229006]
[1741575859737,50.69969006,127.26,127.19,7.8626]
[1741575859938,7.8607,127.23,127.19,7.8626]
[1741575860739,0.05969454,127.22,127.2,0.05425679]
[1741575860936,0.05969454,127.22,127.16,19.97969006]
[1741575861136,0.05969454,127.22,127.14,19.97969006]
[1741575861333,30.72,127.23,127.14,19.97969006]
[1741575862240,0.05908338,127.2,127.17,7.91333502]
[1741575862634,30.77908338,127.2,127.17,0.04963502]
[1741575863441,30.77908338,127.2,127.17,7.91353502]
[1741575865430,19.97969006,127.19,127.04,192.0]
[1741575865636,50.69969006,127.2,127.08,19.97969006]
[1741575865940,19.97969006,127.17,127.08,19.97969006]
[1741575866142,30.72,127.16,127.08,19.97969006]
[1741575866534,0.05516299,127.13,127.11,0.04972134]
[1741575871136,7.8672,127.12,127.11,0.04972134]
[1741575871538,30.74,127.12,127.0,192.0]
[1741575871733,30.74,127.12,127.03,24.75199006]
[1741575872043,30.74,127.12,127.05,19.97969006]
[1741575872242,30.74,127.12,127.06,2.4496]
[1741575872837,0.05550263,127.1,127.08,0.04403005]
[1741575873038,312.45869006,127.15,127.08,0.04403005]
[1741575873543,0.05862552,127.13,127.08,0.04403005]
[1741575873736,7.869,127.09,127.08,0.04403005]
[1741575877138,0.0572469,127.1,127.08,0.04403005]
[1741575877337,7.9259469,127.1,127.08,0.04403005]
[1741575877739,7.869,127.09,127.08,0.04403005]
[1741575881451,0.0572469,127.1,127.08,0.04403005]
[1741575881642,7.9257469,127.1,127.08,0.04403005]
[1741575882046,0.0572469,127.1,127.08,0.04403005]
[1741575882647,7.9258469,127.1,127.08,0.04403005]
[1741575883053,0.0572469,127.1,127.08,0.04403005]
[1741575883254,7.8666,127.13,127.08,7.91343005]
[1741575883451,7.8666,127.13,127.08,0.04403005]
[1741575883647,279.37969006,127.15,127.09,30.76]
[1741575883849,7.8672,127.12,127.09,30.76]
[1741575884052,279.37969006,127.15,127.09,30.76]
[1741575884251,19.97969006,127.13,127.06,33.2096]
[1741575884552,7.8678,127.11,127.08,0.05366979]
[1741575885053,20.04010136,127.13,127.08,0.05366979]
[1741575885753,7.8682,127.11,127.08,30.81366979]
[1741575887258,7.8674,127.12,127.08,38.68286979]
[1741575887846,0.0604113,127.13,127.08,30.81366979]
[1741575888053,0.0604113,127.13,127.12,7.8672]
[1741575889359,0.0604113,127.13,127.11,0.05258542]
[1741575889958,7.9272113,127.13,127.11,0.05258542]
[1741575890859,0.0604113,127.13,127.11,0.05258542]
[1741575891061,7.8672,127.12,127.11,0.05258542]
[1741575891263,27.84689006,127.12,127.11,0.05258542]
[1741575891857,7.8672,127.12,127.11,0.05258542]
[1741575892057,0.0604113,127.13,127.11,0.05258542]
[1741575892258,7.9270113,127.13,127.11,0.05258542]
[1741575893770,7.8672,127.12,127.11,0.05258542]
[1741575895664,7.8693,127.09,127.07,6.35]
[1741575895964,19.97969006,127.16,127.08,30.74]
[1741575896164,58.58449006,127.16,127.12,7.8671]
[1741575896367,19.97969006,127.18,127.11,30.74]
[1741575896562,30.74,127.19,127.12,6.6983]
[1741575896770,0.05357559,127.16,127.14,7.8654]
[1741575897068,0.05357559,127.16,127.13,0.04869153]
[1741575897268,0.05357559,127.16,127.13,7.91499153]
[1741575897468,2.91995138,127.15,127.13,5.04558359]
[1741575897770,2.91995138,127.15,127.12,6.6983]
[1741575897970,0.05357559,127.16,127.12,26.67799006]
[1741575898470,0.05357559,127.16,127.12,6.6983]
[1741575899574,2.97607379,127.18,127.12,26.67799006]
[1741575899767,43.34931859,127.2,127.14,19.97969006]
[1741575900073,43.34931859,127.2,127.19,7.8628]
[1741575901166,43.34931859,127.2,127.18,38.65640323]
[1741575901364,2.96589769,127.21,127.18,38.65640323]
[1741575901568,2.96589769,127.21,127.18,30.79320323]
[1741575901761,46.27942546,127.24,127.2,19.97969006]
[1741575901967,46.27942546,127.24,127.21,30.74]
[1741575902363,46.27942546,127.24,127.22,7.8604]
[1741575902564,46.27942546,127.24,127.18,19.97969006]
[1741575902775,46.27942546,127.24,127.18,50.69969006]
[1741575903066,0.0524126,127.22,127.2,0.05389316]
[1741575904164,46.27942546,127.24,127.2,20.03358322]
[1741575904562,46.27942546,127.24,127.21,30.72]
[1741575905063,86.21124477,127.25,127.22,19.97969006]
[1741575905263,85.96084477,127.25,127.24,19.97969006]
[1741575905461,0.054999,127.25,127.24,50.69969006]
[1741575905669,2.89739043,127.27,127.24,50.69969006]
[1741575906171,2.89739043,127.27,127.25,7.8585]
[1741575906360,2.89739043,127.27,127.24,30.72]
[1741575906863,2.89739043,127.27,127.25,32.00212027]
[1741575906864,9.37e-05,127.27,127.25,32.00212027]
[1741575907067,2.8775447,127.3,127.25,32.00212027]
[1741575908268,0.05349115,127.29,127.26,0.06021416]
[1741575908467,0.05349115,127.29,127.28,7.8573]
[1741575909368,0.05349115,127.29,127.28,38.5573]
[1741575910274,2.8775447,127.3,127.29,7.8567]
[1741575911168,2.8775447,127.3,127.28,38.5572]
[1741575911572,2.8775447,127.3,127.28,30.7]
[1741575912272,2.8775447,127.3,127.29,7.8567]
[1741575912779,2.8775447,127.3,127.28,30.7]
[1741575913074,2.8775447,127.3,127.26,38.39233443]
[1741575913271,7.8578,127.28,127.26,6.39021416]
[1741575913670,0.05385005,127.28,127.26,6.39021416]
[1741575913870,7.8579,127.27,127.26,6.39021416]
[1741575914476,7.8579,127.27,127.2,224.00212027]
[1741575914477,7.8591,127.26,127.2,224.00212027]
[1741575914677,30.7,127.28,127.22,7.8608]
[1741575915377,30.7,127.28,127.2,224.00212027]
[1741575915574,0.05298281,127.26,127.24,0.05956159]
[1741575915975,0.05298281,127.26,127.25,7.8591]
[1741575916475,0.05298281,127.26,127.24,7.91906159]
[1741575916675,0.05298281,127.26,127.24,0.05956159]
[1741575917176,7.91178281,127.26,127.24,0.05956159]
[1741575917372,0.05298281,127.26,127.24,0.05956159]
[1741575919382,7.8591,127.25,127.24,0.05956159]
[1741575919682,0.05298281,127.26,127.24,0.05956159]
[1741575920386,0.05298281,127.26,127.24,7.91876159]
[1741575921676,0.05298281,127.26,127.25,7.8591]
[1741575921874,0.05298281,127.26,127.25,39.86122027]
[1741575922076,2.8775447,127.3,127.25,32.00212027]
[1741575922276,2.8775447,127.3,127.27,32.00212027]
[1741575922477,2.8775447,127.3,127.27,62.68212027]
[1741575922884,4.47e-05,127.3,127.27,62.68212027]
[1741575923274,0.05368099,127.3,127.27,62.73516933]
[1741575923987,0.05368099,127.3,127.27,70.59276933]
[1741575924180,0.05368099,127.3,127.27,62.73516933]
[1741575925379,7.90978099,127.3,127.27,62.73516933]
[1741575925688,0.05368099,127.3,127.27,62.73516933]
[1741575926373,0.05368099,127.3,127.27,30.73304906]
[1741575926577,0.05368099,127.3,127.27,0.05304906]
[1741575926783,0.05368099,127.3,127.21,2.1777]
[1741575926991,7.8587,127.26,127.21,7.8612]
[1741575927485,2.3154,127.29,127.2,254.68212027]
[1741575928092,0.05771329,127.26,127.23,0.0568896]
[1741575928986,0.05771329,127.26,127.23,7.9169896]
[1741575930192,0.05771329,127.26,127.23,0.0568896]
[1741575931994,0.05771329,127.26,127.23,7.9168896]
[1741575933093,0.05771329,127.26,127.23,0.0568896]
[1741575933293,0.05771329,127.26,127.23,7.9170896]
[1741575934395,0.05771329,127.26,127.24,7.8594]
[1741575935400,0.05771329,127.26,127.23,0.0568896]
[1741575935794,7.8595,127.25,127.23,0.0568896]
[1741575935991,0.05771329,127.26,127.23,0.0568896]
[1741575937192,7.8595,127.25,127.23,0.0568896]
[1741575939295,0.05771329,127.26,127.23,0.0568896]
[1741575939501,7.8597,127.24,127.23,0.0568896]
[1741575940997,7.8593,127.25,127.23,0.0568896]
[1741575941398,0.05771329,127.26,127.23,0.0568896]
[1741575941803,7.8597,127.24,127.23,0.0568896]
[1741575942200,0.05771329,127.26,127.22,13.26]
[1741575942503,7.8604,127.23,127.22,13.26]
[1741575942701,7.8604,127.23,127.18,30.68]
[1741575942702,20.00612362,127.23,127.15,219.87102362]
[1741575942895,2.3095,127.22,127.15,58.55102362]
[1741575943093,2.3095,127.22,127.15,27.87102362]
[1741575943296,30.68,127.21,127.15,7.8649]
[1741575943604,0.05575688,127.2,127.17,0.05368391]
[1741575943906,7.8634,127.19,127.17,0.05368391]
[1741575944096,0.05575688,127.2,127.17,0.05368391]
[1741575947504,0.05575688,127.2,127.18,7.8634]
[1741575947801,0.05575688,127.2,127.17,0.05368391]
[1741575948005,0.05575688,127.2,127.19,7.8628]
[1741575949600,0.05575688,127.2,127.17,0.05368391]
[1741575951608,0.05575688,127.2,127.19,7.8628]
[1741575955611,0.05575688,127.2,127.18,20.00612362]
[1741575956315,0.05575688,127.2,127.19,7.8628]
[1741575956913,0.05575688,127.2,127.19,38.5428]
[1741575958515,0.05575688,127.2,127.19,30.68]
[1741575958914,0.05575688,127.2,127.19,38.5428]
[1741575961704,0.05575688,127.2,127.19,30.68]
[1741575962015,0.05575688,127.2,127.18,20.00612362]
[1741575962415,0.05575688,127.2,127.19,7.8628]
[1741575966120,0.05575688,127.2,127.19,27.86892362]
[1741575967321,0.05575688,127.2,127.19,58.52892362]
[1741575967522,2.3427,127.24,127.23,7.8604]
[1741575967724,38.5183,127.27,127.21,20.00612362]
[1741575967924,4.4724,127.28,127.21,20.00612362]
[1741575968127,4.4724,127.28,127.25,7.8587]
[1741575968418,12.3298,127.28,127.25,7.8587]
[1741575968624,12.38403867,127.28,127.25,7.91035422]
[1741575968925,4.52663867,127.28,127.26,7.8584]
[1741575969320,4.52663867,127.28,127.25,7.91055422]
[1741575970017,2.31553867,127.28,127.25,0.05165422]
[1741575970227,2.31553867,127.28,127.26,7.8582]
[1741575971026,2.31553867,127.28,127.25,0.05165422]
[1741575971027,0.05423867,127.28,127.27,7.8579]
[1741575971325,0.05423867,127.28,127.25,20.05777784]
[1741575971718,0.05423867,127.28,127.25,0.05165422]
[1741575972419,7.8585,127.27,127.25,0.05165422]
[1741575972620,0.05423867,127.28,127.25,0.05165422]
[1741575973524,0.05423867,127.28,127.21,20.00612362]
[1741575973525,30.71423867,127.28,127.21,20.00612362]
[1741575973826,50.72036229,127.28,127.19,212.00612362]
[1741575974022,50.66612362,127.28,127.19,212.00612362]
[1741575974824,0.05806976,127.25,127.22,0.05544175]
[1741575975630,7.8604,127.23,127.22,0.05544175]
[1741575978732,4.4011,127.24,127.22,0.05544175]
[1741575978937,14.5487,127.24,127.22,0.05544175]
[1741575979931,7.8604,127.23,127.22,0.05544175]
[1741575982237,34.58,127.23,127.16,20.49]
[1741575982537,20.00612362,127.22,127.16,20.49]
[1741575982941,7.8641,127.17,127.16,20.49]
[1741575983236,50.64612362,127.18,127.13,32.44126628]
[1741575983436,20.00612362,127.16,127.12,85.53215932]
[1741575983738,30.64,127.15,127.12,85.53215932]
[1741575984039,20.00612362,127.14,127.11,165.83160114]
[1741575984239,4.81575425,127.13,127.11,165.83160114]
[1741575984441,38.5072,127.12,127.11,165.83160114]
[1741575984641,38.5072,127.12,127.11,165.88541784]
[1741575984939,43.31764841,127.12,127.11,165.88541784]
[1741575985334,38.5072,127.12,127.11,165.88541784]
[1741575985533,47.25227109,127.12,127.11,156.32341784]
[1741575985931,43.31227109,127.12,127.11,0.0538167]
[1741575987344,38.5072,127.12,127.11,0.0538167]
[1741575988035,30.64,127.12,127.11,0.0538167]
[1741575988546,0.05962592,127.13,127.11,0.0538167]
[1741575989046,7.92632592,127.13,127.11,0.0538167]
[1741575989244,0.05962592,127.13,127.11,0.0538167]
[1741575990345,7.92662592,127.13,127.11,0.0538167]
[1741575990647,0.05962592,127.13,127.11,0.0538167]
[1741575991548,7.8672,127.12,127.11,0.0538167]
[1741575991846,7.92642592,127.13,127.11,0.0538167]
[1741575992042,0.05962592,127.13,127.11,0.0538167]
[1741575992743,0.05962592,127.13,127.11,30.7138167]
[1741575992953,30.66,127.18,127.12,20.00612362]
[1741575993138,30.66,127.18,127.11,30.7138167]
[1741575993345,20.00612362,127.21,127.12,20.00612362]
[1741575993640,30.66,127.21,127.12,20.00612362]
[1741575993849,20.00612362,127.21,127.12,20.00612362]
[1741575994040,0.05047281,127.18,127.15,0.05391514]
[1741575994747,0.05047281,127.18,127.15,7.91921514]
[1741575995350,0.05047281,127.18,127.15,0.05391514]
[1741575996446,7.91437281,127.18,127.15,0.05391514]
[1741575996748,0.05047281,127.18,127.15,0.05391514]
[1741575998253,20.00612362,127.17,127.15,0.05391514]
[1741575998451,30.64,127.16,127.15,0.05391514]
[1741575998651,30.64,127.16,127.15,1.514e-05]
[1741575998951,38.5047,127.16,127.15,1.514e-05]
[1741575999544,38.5047,127.16,127.03,193.36913544]
[1741575999545,59.36592651,127.16,127.03,192.0]
[1741575999758,20.00612362,127.11,127.01,20.00612362]
[1741575999958,30.64,127.1,127.01,50.64612362]
[1741576000142,7.8704,127.07,127.01,27.87972362]
[1741576000338,30.64,127.1,127.01,50.64612362]
[1741576000746,0.05049215,127.07,127.04,0.04962825]
[1741576002250,50.66612362,127.06,126.89,192.0]
[1741576002554,20.00612362,127.05,126.96,20.00612362]
[1741576002746,259.48,127.12,126.98,20.00612362]
[1741576003047,20.00612362,127.08,126.98,20.00612362]
[1741576003248,20.00612362,127.06,126.97,32.9213]
[1741576003448,0.0593525,127.04,127.02,0.05304713]
[1741576003852,20.06547612,127.04,127.02,0.05304713]
[1741576004243,0.0593525,127.04,127.02,0.05304713]
[1741576004952,7.8727,127.03,127.02,0.05304713]
[1741576006045,7.8727,127.03,127.02,4.713e-05]
[1741576006254,11.8127,127.03,127.02,4.713e-05]
[1741576006446,7.8758,126.99,126.94,4.4437]
[1741576006855,30.66,127.0,126.94,4.4437]
[1741576007053,38.5347,127.0,126.94,4.4437]
[1741576007253,30.66,127.0,126.95,11.5]
[1741576007457,7.8757,126.99,126.95,11.5]
[1741576007756,0.05534686,126.99,126.95,11.5]
[1741576008056,0.05534686,126.99,126.95,19.3773]
[1741576008259,0.05534686,126.99,126.95,11.5]